bitfinex-derivatives/quotes_ETHF0:USTF0_20241231
["timestamp","ask_amount","ask_price","bid_price","bid_amount"]
[1735615868237,1.19641,3345.9,3345.5,0.29944]
[1735615868835,3.2078,3345.6,3345.4,0.29945]
[1735615869235,3.2078,3345.6,3345.3,1.198]
[1735615869442,3.2078,3345.6,3345.5,0.29944]
[1735615872742,0.897,3345.9,3345.8,0.29942]
[1735615874934,3.662,3346.0,3345.9,0.29941]
[1735615876949,3.2078,3346.0,3345.9,0.29941]
[1735615878749,0.8748,3346.3,3346.2,0.29938]
[1735615879364,3.6599,3346.4,3346.0,3.46668711]
[1735615879550,7.05304455,3348.0,3346.7,0.29934]
[1735615879551,3.2078,3346.8,3346.7,0.29934]
[1735615883451,3.2078,3346.8,3346.2,40.8]
[1735615883647,0.4531,3346.7,3346.5,0.29935]
[1735615883854,0.4531,3346.7,3346.2,40.8]
[1735615883855,0.4531,3346.7,3346.6,0.29934]
[1735615885361,0.4531,3346.7,3346.5,0.29935]
[1735615886461,0.4531,3346.7,3346.6,0.29934]
[1735615889562,0.4531,3346.7,3346.2,1.204]
[1735615889763,0.4531,3346.7,3346.5,0.29935]
[1735615892164,0.4531,3346.7,3346.6,0.29934]
[1735615894568,3.2078,3346.8,3346.7,0.29934]
[1735615895167,3.2078,3346.8,3346.7,41.09934]
[1735615896459,3.2078,3346.8,3346.7,0.29934]
[1735615897161,0.29934,3346.7,3346.3,1.203]
[1735615897366,3.2078,3346.8,3346.3,1.203]
[1735615897367,3.50713,3346.8,3346.5,0.29935]
[1735615898465,3.2078,3346.8,3346.3,1.203]
[1735615898764,3.2078,3346.8,3346.7,0.29934]
[1735615901370,3.2078,3347.4,3346.7,0.29934]
[1735615901570,3.2078,3347.4,3347.3,0.29927]
[1735615903267,3.2078,3347.4,3347.2,2.26868711]
[1735615903268,0.4306,3347.5,3347.4,0.29927]
[1735615905569,0.8958,3347.9,3347.2,2.26868711]
[1735615905766,0.8958,3347.9,3347.1,1.203]
[1735615905767,1.3396,3347.9,3347.8,0.29924]
[1735615907968,1.3396,3347.9,3347.7,0.29924]
[1735615908170,1.3396,3347.9,3347.5,2.26868711]
[1735615908471,1.3396,3347.9,3347.8,0.29924]
[1735615910269,1.3396,3347.9,3347.5,2.26868711]
[1735615910471,1.3396,3347.9,3347.6,0.29925]
[1735615910672,1.63883,3347.9,3347.6,0.29925]
[1735615911172,1.63883,3347.9,3346.8,4.68301935]
[1735615911173,1.3396,3347.9,3346.8,4.68301935]
[1735615911376,3.2078,3347.3,3346.8,5.88601935]
[1735615911580,1.269,3347.2,3347.1,0.2993]
[1735615912774,1.269,3347.2,3347.0,0.2993]
[1735615913079,1.269,3347.2,3346.8,46.68601935]
[1735615913280,1.56829,3347.2,3346.9,0.29931]
[1735615913874,1.269,3347.2,3346.9,0.29931]
[1735615915271,1.269,3347.2,3347.0,0.29931]
[1735615916070,1.269,3347.2,3346.8,42.30232]
[1735615916071,1.5683,3347.2,3346.8,42.30232]
[1735615916269,0.2993,3347.1,3346.8,42.30232]
[1735615917173,0.2993,3347.1,3346.8,41.09932]
[1735615917475,0.2993,3347.1,3345.5,1.033]
[1735615917476,3.9562,3346.5,3344.2,2.26868711]
[1735615917673,3.2078,3345.1,3344.8,0.2995]
[1735615917871,0.4534,3345.0,3344.6,2.26868711]
[1735615918072,0.4534,3345.0,3344.9,0.2995]
[1735615918271,0.4534,3345.0,3344.9,41.0995]
[1735615919073,0.4534,3345.0,3344.9,40.8]
[1735615919677,0.4534,3345.0,3344.9,41.0995]
[1735615920077,0.4534,3345.0,3344.9,40.8]
[1735615927890,0.4534,3345.0,3344.9,41.0995]
[1735615928079,3.2078,3345.1,3345.0,0.29949]
[1735615928382,3.2078,3345.5,3345.4,0.29944]
[1735615928580,4.1111,3346.1,3346.0,0.2994]
[1735615928786,3.6667,3346.1,3346.0,41.0994]
[1735615929185,3.2078,3346.1,3346.0,41.0994]
[1735615931487,3.2078,3346.1,3346.0,40.8]
[1735615932485,3.2078,3346.1,3346.0,41.0994]
[1735615933888,3.2078,3346.1,3346.0,43.36808711]
[1735615934087,3.2078,3346.5,3346.4,0.29936]
[1735615934691,3.2078,3346.5,3346.0,40.8]
[1735615934993,3.2078,3346.1,3346.0,41.0994]
[1735615936190,3.2078,3346.5,3346.0,40.8]
[1735615936390,3.2078,3346.5,3346.3,0.29937]
[1735615937182,3.2078,3346.5,3346.0,40.8]
[1735615937386,3.2078,3346.5,3346.4,0.29936]
[1735615938186,3.6393,3346.5,3346.4,0.29936]
[1735615939994,3.2078,3346.5,3346.4,0.29936]
[1735615945094,3.2078,3346.5,3346.0,43.06868711]
[1735615945289,3.2078,3346.5,3346.4,0.29936]
[1735615945494,0.4539,3346.6,3346.5,0.29935]
[1735615946795,0.4539,3346.6,3346.4,0.29936]
[1735615947997,0.4539,3346.6,3346.5,0.29935]
[1735615950406,0.75325,3346.6,3346.2,1.50137]
[1735615950704,3.2078,3346.4,3346.3,0.29937]
[1735615955203,0.4539,3346.6,3346.3,2.26868711]
[1735615955406,3.6444,3346.8,3346.3,2.26868711]
[1735615955610,3.6444,3346.8,3346.7,0.29934]
[1735615956109,3.6444,3346.8,3346.7,41.09934]
[1735615959815,3.6444,3346.8,3346.7,0.29934]
[1735615961223,3.6444,3346.8,3346.4,0.29936]
[1735615961423,0.9069,3346.7,3346.4,0.29936]
[1735615961824,0.9069,3346.7,3346.5,0.29935]
[1735615962423,0.29935,3346.6,3346.3,4.97798018]
[1735615962630,0.29935,3346.6,3346.3,0.29936]
[1735615963020,1.20624,3346.7,3346.1,4.67862018]
[1735615963229,1.20624,3346.7,3346.4,0.29936]
[1735615965031,0.9069,3346.7,3346.4,0.29936]
[1735615965728,0.9069,3346.7,3346.6,0.29934]
[1735615967225,0.9069,3346.7,3346.2,4.67862018]
[1735615967820,3.2078,3346.4,3346.2,4.67862018]
[1735615968122,3.2078,3346.4,3346.0,42.002]
[1735615968328,3.2078,3346.4,3346.3,0.29937]
[1735615972927,3.2078,3346.4,3346.2,0.29938]
[1735615973133,3.2078,3346.4,3346.1,0.29938]
[1735615973935,3.50716,3346.4,3346.1,0.29938]
[1735615974635,3.2078,3346.4,3346.0,45.50202143]
[1735615974834,3.2078,3346.4,3346.2,0.29938]
[1735615976538,3.2078,3346.4,3346.1,0.29939]
[1735615976735,3.2078,3346.4,3346.2,0.29937]
[1735615977438,3.2078,3346.4,3346.3,0.29937]
[1735615979736,0.29939,3346.1,3346.0,4.70665729]
[1735615980333,1.15809,3346.1,3346.0,4.70665729]
[1735615980540,0.2994,3346.0,3345.8,0.29941]
[1735615980839,0.8587,3346.1,3345.8,0.29941]
[1735615980840,1.15809,3346.1,3345.8,0.29941]
[1735615981435,3.2078,3345.9,3345.7,45.50665729]
[1735615981641,0.29942,3345.8,3345.7,4.70665729]
[1735615982944,0.29942,3345.8,3345.5,0.29944]
[1735615982945,0.29943,3345.7,3345.5,0.29944]
[1735615983737,0.4293,3345.8,3345.4,41.997]
[1735615983940,0.4293,3345.8,3345.4,42.29645]
[1735615983941,3.2078,3345.5,3345.4,42.29645]
[1735615987040,3.2078,3345.5,3345.4,41.997]
[1735615987435,3.2078,3345.5,3345.4,42.29645]
[1735615988637,3.2078,3345.5,3345.4,41.997]
[1735615989334,4.0754,3345.5,3345.4,40.8]
[1735615991135,4.0754,3345.5,3345.4,0.29945]
[1735615991736,4.0754,3345.5,3345.4,41.09945]
[1735615992343,4.0754,3345.5,3345.4,40.8]
[1735615993543,4.37484,3345.5,3345.4,40.8]
[1735615993744,4.0754,3345.5,3345.4,40.8]
[1735615994546,4.0754,3345.5,3345.4,41.09944]
[1735616000349,4.37483,3345.5,3345.4,40.8]
[1735616000549,4.0754,3345.5,3345.4,40.8]
[1735616000946,4.0754,3345.5,3345.4,41.09944]
[1735616004450,3.2078,3345.5,3345.4,41.09944]
[1735616009156,3.50723,3345.5,3345.4,40.8]
[1735616009661,3.50723,3345.5,3345.3,0.29944]
[1735616009855,5.47648711,3345.5,3345.1,0.29946]
[1735616010052,0.29944,3345.4,3345.2,0.29945]
[1735616010258,5.47648711,3345.5,3345.0,4.69616936]
[1735616010562,0.4509,3345.3,3345.2,0.29946]
[1735616011060,0.4509,3345.3,3345.1,0.29946]
[1735616011352,0.4509,3345.3,3344.9,40.8]
[1735616011853,0.75035,3345.3,3345.0,0.29947]
[1735616012461,0.75035,3345.3,3344.9,41.09948]
[1735616012662,0.29946,3345.2,3344.7,9.09796936]
[1735616012963,0.852,3345.1,3345.0,0.29947]
[1735616013351,0.852,3345.1,3344.8,40.8]
[1735616013554,1.15147,3345.1,3344.8,40.8]
[1735616013756,1.15147,3345.1,3344.8,45.49616936]
[1735616014362,1.15147,3345.1,3344.8,4.69616936]
[1735616014662,0.852,3345.1,3344.8,4.99565936]
[1735616014861,0.852,3345.1,3344.9,40.8]
[1735616015160,5.47648711,3345.5,3344.9,40.8]
[1735616015161,3.2078,3345.5,3345.2,0.29946]
[1735616015462,3.2078,3345.5,3345.4,0.29944]
[1735616016053,3.2078,3345.5,3345.4,41.09944]
[1735616017264,3.2078,3345.5,3345.4,40.8]
[1735616017763,3.2078,3345.5,3345.4,41.09944]
[1735616018152,3.2078,3345.5,3345.4,0.29944]
[1735616018358,3.2078,3345.5,3345.0,0.7233]
[1735616018359,3.2078,3345.5,3345.3,0.29944]
[1735616019768,3.50723,3345.5,3345.2,0.29945]
[1735616019958,3.50723,3345.5,3345.0,4.99563936]
[1735616019959,5.47648711,3345.5,3345.0,4.99563936]
[1735616020160,0.29945,3345.3,3345.0,4.99563936]
[1735616020655,0.29945,3345.3,3345.0,0.29947]
[1735616020656,0.451,3345.2,3345.0,0.29947]
[1735616020853,0.8462,3345.1,3345.0,0.29947]
[1735616021054,1.14567,3345.1,3344.9,4.69616936]
[1735616021261,0.8462,3345.1,3344.9,4.99564936]
[1735616021761,1.14567,3345.1,3344.9,0.29948]
[1735616022265,0.29948,3345.0,3344.7,7.90396936]
[1735616022659,0.29948,3345.0,3344.7,8.20345936]
[1735616022860,0.29948,3345.0,3344.7,3.50729]
[1735616023965,0.8462,3345.1,3344.7,3.50729]
[1735616024160,0.8462,3345.1,3344.7,3.2078]
[1735616024161,0.29949,3344.9,3344.7,3.2078]
[1735616024361,0.29948,3345.0,3344.7,3.2078]
[1735616025161,0.2995,3344.7,3344.6,4.69616936]
[1735616026470,0.2995,3344.7,3344.4,0.79853]
[1735616026471,4.70021686,3344.7,3344.4,0.499]
[1735616026660,3.2078,3344.5,3344.4,0.79853]
[1735616026860,3.50732,3344.5,3344.4,0.499]
[1735616027058,3.96062,3344.5,3344.4,0.499]
[1735616027262,4.39432,3344.5,3344.4,0.499]
[1735616027469,0.29955,3344.2,3344.1,4.69616936]
[1735616028072,0.29955,3344.2,3343.9,0.29957]
[1735616028272,3.2078,3344.1,3343.9,0.29957]
[1735616029075,3.2078,3344.1,3343.8,4.69616936]
[1735616029376,3.2078,3344.1,3344.0,0.29956]
[1735616030075,3.2078,3344.1,3343.8,0.2991]
[1735616030473,0.29957,3344.0,3343.7,4.99575936]
[1735616030677,0.9146,3343.9,3343.6,45.49616936]
[1735616030874,0.9146,3343.9,3343.7,0.29959]
[1735616035873,0.9146,3343.9,3343.6,41.0996]
[1735616037576,0.9146,3343.9,3343.7,0.29959]
[1735616043083,1.21418,3343.9,3343.6,40.8]
[1735616043281,1.21418,3343.9,3343.6,41.09959]
[1735616045184,0.9146,3343.9,3343.7,0.29959]
[1735616045385,0.9146,3343.9,3343.6,40.8]
[1735616045580,0.9146,3343.9,3343.7,0.29959]
[1735616045887,0.9146,3343.9,3343.6,40.8]
[1735616046077,0.9146,3343.9,3343.7,0.29958]
[1735616048080,1.21418,3343.9,3343.6,41.0996]
[1735616048483,0.9146,3343.9,3343.6,40.8]
[1735616048683,0.9146,3343.9,3343.7,0.29958]
[1735616050182,1.07574715,3343.8,3343.7,0.29958]
[1735616050588,1.07574715,3343.8,3343.6,40.8]
[1735616050789,1.37533715,3343.8,3343.6,40.8]
[1735616052290,0.9146,3343.9,3343.7,0.29958]
[1735616052485,1.07574715,3343.8,3343.7,0.29958]
[1735616053187,1.07574715,3343.8,3343.6,40.8]
[1735616053188,0.9146,3343.9,3343.6,40.8]
[1735616053380,0.9146,3343.9,3343.8,0.29958]
[1735616056484,0.9146,3343.9,3343.7,0.29958]
[1735616056690,0.9146,3343.9,3343.8,0.29958]
[1735616057691,0.29959,3343.8,3343.6,40.8]
[1735616057890,1.07574715,3343.7,3343.6,40.8]
[1735616058193,1.07574715,3343.7,3343.5,0.2996]
[1735616058497,1.07574715,3343.7,3343.5,41.0996]
[1735616058896,1.07574715,3343.7,3343.5,40.8]
[1735616059199,1.07574715,3343.7,3343.6,0.2996]
[1735616059792,1.07574715,3343.7,3343.5,40.8]
[1735616060293,0.2996,3343.7,3343.5,40.8]
[1735616060595,0.2996,3343.7,3343.5,41.09961]
[1735616060792,0.29959,3343.8,3343.5,41.09961]
[1735616060992,0.9146,3343.9,3343.5,41.09961]
[1735616060993,1.21418,3343.9,3343.6,0.2996]
[1735616063695,0.9146,3343.9,3343.6,0.2996]
[1735616063897,0.29958,3343.8,3343.5,41.0996]
[1735616064399,0.9146,3343.9,3343.5,40.8]
[1735616064698,0.2996,3343.7,3343.5,40.8]
[1735616064897,0.9146,3343.9,3343.5,40.8]
[1735616065198,0.29959,3343.8,3343.5,41.09961]
[1735616065497,0.29959,3343.8,3343.5,40.8]
[1735616065690,0.29959,3343.8,3343.6,0.2996]
[1735616066995,1.21418,3343.9,3343.7,0.29959]
[1735616067893,0.29958,3343.8,3343.5,40.8]
[1735616068099,0.29958,3343.8,3343.6,0.2996]
[1735616068701,0.9146,3343.9,3343.5,40.8]
[1735616068901,0.2996,3343.7,3343.5,41.0996]
[1735616069104,0.2996,3343.7,3343.5,40.8]
[1735616069303,0.2996,3343.7,3343.6,0.2996]
[1735616069706,0.9146,3343.9,3343.4,4.69616936]
[1735616070001,0.2996,3343.7,3343.5,0.29961]
[1735616070194,0.9146,3343.9,3343.8,0.29958]
[1735616073205,7.90801686,3344.0,3343.7,5.15016936]
[1735616073498,7.90801686,3344.0,3343.9,0.29957]
[1735616074207,4.70021686,3344.0,3343.9,0.29957]
[1735616074502,6.31869165,3344.2,3343.9,0.29957]
[1735616074503,5.15491686,3344.2,3343.9,12.95471754]
[1735616074705,5.15491686,3344.2,3344.1,0.29955]
[1735616075200,4.70021686,3344.2,3344.1,0.29955]
[1735616075907,4.70021686,3344.2,3344.1,5.0152962]
[1735616076607,7.27251631,3344.2,3344.1,4.7157462]
[1735616077011,7.27251631,3344.2,3344.1,3.9769462]
[1735616077212,2.57229945,3344.2,3344.1,3.2381462]
[1735616078407,2.27274945,3344.2,3343.5,7.34385404]
[1735616078609,3.2078,3343.9,3343.5,7.34385404]
[1735616078801,0.29958,3343.8,3343.5,7.34385404]
[1735616079007,0.4644,3343.8,3343.5,7.04425404]
[1735616079307,5.17315742,3343.8,3343.7,0.29959]
[1735616079711,4.70875742,3343.8,3343.7,0.29959]
[1735616080299,4.70875742,3344.1,3343.7,46.67172808]
[1735616080600,4.70875742,3344.1,3344.0,0.29956]
[1735616080906,4.70875742,3344.1,3344.0,1.49356]
[1735616081107,4.70875742,3344.1,3344.0,4.70136]
[1735616081707,0.4526,3344.6,3344.1,0.29955]
[1735616082009,0.4526,3344.6,3344.4,0.29953]
[1735616083410,0.4526,3344.6,3344.4,0.29952]
[1735616083714,0.4526,3344.6,3344.4,0.29953]
[1735616083913,0.4526,3344.6,3344.4,0.78933]
[1735616084211,0.4672,3344.7,3344.4,0.4898]
[1735616084613,7.91655742,3344.8,3344.7,0.2995]
[1735616085408,3.2078,3344.8,3344.7,0.2995]
[1735616087615,4.70875742,3345.2,3345.1,0.29947]
[1735616087819,0.4481,3345.3,3345.2,0.29946]
[1735616088817,0.4481,3345.3,3345.1,0.29946]
[1735616092112,3.2078,3345.4,3345.3,0.29945]
[1735616093616,0.4845,3345.5,3344.8,1.6451]
[1735616093815,3.2078,3345.8,3345.0,3.2078]
[1735616094013,3.2078,3345.8,3345.7,0.29941]
[1735616094523,4.70875742,3345.9,3345.1,0.9763]
[1735616094721,4.70875742,3345.9,3345.1,1.72496]
[1735616094917,4.70875742,3345.9,3345.6,0.29942]
[1735616095122,0.2994,3345.9,3345.6,0.29942]
[1735616095621,1.3922,3346.0,3345.1,0.9763]
[1735616095816,3.2078,3346.2,3346.1,0.29938]
[1735616099126,3.6565,3346.6,3346.4,0.29934]
[1735616103718,3.95583,3346.6,3346.2,0.29936]
[1735616104314,3.95583,3346.6,3345.6,0.473]
[1735616104315,2.27274945,3346.4,3345.6,0.473]
[1735616104527,5.48054945,3346.1,3345.7,0.29941]
[1735616104828,0.4646,3346.0,3345.8,0.2994]
[1735616105118,0.4646,3346.0,3345.9,0.29939]
[1735616105119,0.9406,3346.0,3345.9,0.29939]
[1735616105323,0.9406,3346.0,3345.7,0.2994]
[1735616105524,0.9406,3346.0,3345.8,0.2994]
[1735616106332,1.23999,3346.0,3345.4,42.4581]
[1735616106526,3.2078,3345.7,3345.5,0.29943]
[1735616107024,0.4634,3345.6,3345.5,0.29943]
[1735616107621,0.4634,3345.6,3345.4,40.8]
[1735616108029,0.4634,3345.6,3345.4,41.09944]
[1735616108528,0.4634,3345.6,3345.5,0.29943]
[1735616108728,0.4634,3345.6,3345.4,41.09943]
[1735616109225,0.4634,3345.6,3345.5,0.29943]
[1735616110025,0.4634,3345.6,3345.4,41.09943]
[1735616110224,0.4634,3345.6,3345.4,40.8]
[1735616110527,0.4634,3345.6,3345.5,0.29943]
[1735616110928,3.2078,3345.7,3345.6,0.29942]
[1735616111131,3.6688,3345.7,3345.6,0.29942]
[1735616112025,3.2078,3345.7,3345.6,0.29942]
[1735616112530,0.9406,3346.0,3345.9,0.29939]
[1735616113224,0.9406,3346.0,3345.2,3.2078]
[1735616113425,0.9406,3346.0,3345.3,40.8]
[1735616113731,1.23999,3346.0,3345.7,0.29941]
[1735616113932,0.9406,3346.0,3345.9,0.29939]
[1735616114828,0.9406,3346.0,3345.8,0.2994]
[1735616116230,1.23999,3346.0,3345.7,0.29941]
[1735616116626,0.2994,3345.9,3345.7,0.29941]
[1735616117033,1.23999,3346.0,3345.7,0.29941]
[1735616117931,0.2994,3345.9,3345.7,0.29941]
[1735616118126,0.9406,3346.0,3345.7,0.29941]
[1735616118432,0.9406,3346.0,3345.8,0.2994]
[1735616118835,1.23999,3346.0,3345.8,0.2994]
[1735616119030,1.23999,3346.0,3345.3,40.8]
[1735616119331,1.23999,3346.0,3345.7,0.29941]
[1735616119533,0.29939,3345.9,3345.6,0.29941]
[1735616119734,0.29941,3345.8,3345.5,0.29942]
[1735616121340,2.27274945,3345.8,3345.3,40.8]
[1735616122033,0.29942,3345.7,3345.4,0.29943]
[1735616122637,0.4615,3345.6,3345.5,0.29943]
[1735616122940,0.4615,3345.6,3345.3,40.8]
[1735616123138,0.29944,3345.4,3345.3,40.8]
[1735616124435,3.6693,3345.6,3345.3,40.8]
[1735616124640,0.29944,3345.4,3345.3,40.8]
[1735616124938,0.29945,3345.3,3345.1,0.29946]
[1735616125138,1.24925,3345.3,3345.1,0.29946]
[1735616125337,1.24925,3345.3,3345.2,40.8]
[1735616128234,0.9498,3345.3,3345.2,40.8]
[1735616128433,0.9498,3345.3,3345.2,41.09946]
[1735616130542,1.24925,3345.3,3345.2,40.8]
[1735616133039,0.9498,3345.3,3345.2,40.8]
[1735616133243,0.9498,3345.3,3345.2,41.09946]
[1735616134149,1.24925,3345.3,3345.2,40.8]
[1735616135544,0.29947,3345.1,3344.9,0.29948]
[1735616135844,0.9498,3345.3,3344.6,7.53991059]
[1735616135845,5.48054945,3345.2,3344.6,7.53991059]
[1735616136146,3.5073,3344.7,3344.6,7.06691059]
[1735616136644,4.4733,3344.7,3344.6,7.06691059]
[1735616137043,4.4733,3344.7,3344.3,0.29954]
[1735616137044,4.1738,3344.7,3344.3,0.29954]
[1735616137342,0.29952,3344.5,3344.3,0.29954]
[1735616137741,0.4796,3344.4,3344.3,0.29954]
[1735616137941,0.29952,3344.6,3344.2,40.8]
[1735616137942,4.47331,3344.7,3344.2,40.8]
[1735616138144,4.95291,3344.7,3344.2,40.8]
[1735616138340,4.95291,3344.7,3344.4,0.29952]
[1735616139341,3.2078,3344.7,3344.6,0.29951]
[1735616139551,4.70875742,3345.1,3345.0,0.29947]
[1735616139552,3.2078,3345.1,3345.0,0.29947]
[1735616140252,3.2078,3345.1,3345.0,41.09947]
[1735616140747,3.50727,3345.1,3345.0,40.8]
[1735616141054,0.29949,3344.9,3344.7,0.7742]
[1735616142247,5.48054945,3345.1,3344.7,0.7742]
[1735616142448,0.29947,3345.0,3344.8,0.29949]
[1735616142847,0.29947,3345.0,3344.7,0.7742]
[1735616143453,0.29949,3344.8,3344.7,0.4747]
[1735616144648,0.29949,3344.8,3344.6,1.49251]
[1735616144847,0.4869,3344.7,3344.6,1.49251]
[1735616145949,0.4869,3344.7,3344.5,41.09952]
[1735616146249,0.4869,3344.7,3344.5,0.29952]
[1735616146454,0.9377,3344.6,3344.5,0.29952]
[1735616147751,0.4869,3344.7,3344.4,0.47]
[1735616147956,0.4869,3344.7,3344.6,0.29951]
[1735616148455,0.4869,3344.7,3344.5,0.29952]
[1735616149353,3.6947,3344.7,3344.4,0.47]
[1735616149656,3.6947,3344.7,3344.2,0.29954]
[1735616149657,0.29953,3344.5,3344.2,0.29954]
[1735616152355,0.29955,3344.2,3344.1,40.8]
[1735616152656,0.29955,3344.2,3343.9,0.29957]
[1735616152857,0.4893,3344.1,3343.9,0.29957]
[1735616153253,0.4893,3344.1,3343.8,40.8]
[1735616153454,0.78886,3344.1,3343.8,41.09957]
[1735616153654,0.4893,3344.1,3343.9,0.29957]
[1735616155354,0.4893,3344.1,3343.8,40.8]
[1735616155661,0.29957,3344.0,3343.8,40.8]
[1735616155858,0.79197,3344.0,3343.8,40.8]
[1735616156062,0.29957,3343.9,3343.8,40.8]
[1735616156257,0.79197,3344.0,3343.8,40.8]
[1735616156656,0.4924,3344.0,3343.8,40.8]
[1735616156856,0.79197,3344.0,3343.8,40.8]
[1735616157257,0.4924,3344.0,3343.8,41.09958]
[1735616157458,0.4893,3344.1,3344.0,0.29956]
[1735616158058,0.4893,3344.1,3343.8,40.8]
[1735616158351,0.4893,3344.1,3344.0,0.29956]
[1735616158548,0.4893,3344.1,3343.8,40.8]
[1735616158748,0.4893,3344.1,3343.9,0.29957]
[1735616160262,0.4893,3344.1,3344.0,0.29956]
[1735616160654,0.4893,3344.1,3343.8,40.8]
[1735616160655,0.4893,3344.1,3343.9,0.29957]
[1735616160863,0.4893,3344.1,3343.8,41.09958]
[1735616161163,0.78886,3344.1,3343.8,41.09958]
[1735616161464,0.4893,3344.1,3344.0,0.29956]
[1735616161759,0.4893,3344.1,3343.8,40.8]
[1735616161967,0.78886,3344.1,3343.9,0.29957]
[1735616162268,0.4893,3344.1,3343.9,0.29957]
[1735616162852,0.4893,3344.1,3343.8,41.09958]
[1735616163058,0.29956,3344.0,3343.8,41.09958]
[1735616163561,0.78886,3344.1,3343.9,0.29957]
[1735616164459,0.4893,3344.1,3344.0,0.29956]
[1735616165662,0.4893,3344.1,3344.0,0.30137894]
[1735616166769,0.78885,3344.1,3344.0,0.30137894]
[1735616166970,0.78885,3344.1,3344.0,0.00181894]
[1735616176176,3.99665,3344.1,3344.0,0.00181894]
[1735616191293,8.70540742,3344.1,3344.0,0.00181894]
[1735616193088,3.99665,3344.1,3344.0,0.00181894]
[1735616196295,5.07248137,3344.1,3344.0,0.00181894]
[1735616197893,10.95842814,3344.1,3344.0,0.00181894]
[1735616201402,10.46912814,3344.1,3344.0,0.00181894]
[1735616201895,10.46912814,3344.1,3344.0,0.30137894]
[1735616202293,10.46912814,3344.1,3344.0,0.00181894]
[1735616202294,9.28874054,3344.1,3344.0,0.00181894]
[1735616202699,9.28874054,3344.1,3344.0,0.30137894]
[1735616203199,4.28363137,3344.1,3344.0,4.71641999]
[1735616203400,4.58318137,3344.1,3344.0,4.71641999]
[1735616204995,4.28363137,3344.1,3344.0,5.01597999]
[1735616205500,4.58318137,3344.1,3344.0,4.71641999]
[1735616205892,3.2078,3344.1,3344.0,4.71641999]
[1735616206202,3.96285917,3344.2,3344.1,0.29955]
[1735616206397,3.80515917,3344.2,3344.1,0.29955]
[1735616206598,3.80515917,3344.2,3344.1,5.29955]
[1735616206799,3.80515917,3344.2,3344.1,8.50735]
[1735616206998,1.05735486,3344.2,3344.1,8.50735]
[1735616207207,5.88594677,3345.0,3344.9,0.29948]
[1735616208398,3.97264,3345.4,3345.1,0.29946]
[1735616208593,3.6732,3345.4,3345.2,0.29945]
[1735616208795,3.2078,3345.4,3345.3,0.29945]
[1735616209400,3.2078,3345.4,3345.2,0.29945]
[1735616209798,3.2078,3345.4,3345.1,0.29947]
[1735616210007,3.2078,3345.4,3345.2,0.29945]
[1735616210603,3.6874,3345.4,3345.3,0.29945]
[1735616211502,3.2078,3345.4,3345.3,0.29945]
[1735616212092,5.88594677,3346.1,3345.3,0.29945]
[1735616212299,5.88594677,3346.1,3346.0,0.29938]
[1735616213408,0.4796,3346.6,3345.9,2.27050509]
[1735616213700,0.4796,3346.6,3346.3,0.29935]
[1735616213900,3.2078,3346.9,3346.3,40.8]
[1735616214099,3.2078,3346.9,3346.6,0.29933]
[1735616214310,3.2078,3346.9,3346.3,40.8]
[1735616214311,3.2078,3346.9,3346.5,0.29933]
[1735616214803,3.2078,3346.9,3346.3,40.8]
[1735616215008,3.50711,3346.9,3346.4,0.29934]
[1735616215498,0.4686,3346.8,3346.4,0.29934]
[1735616215698,0.4556,3346.7,3346.4,0.29934]
[1735616216301,0.4556,3346.7,3346.6,0.29933]
[1735616216706,0.4556,3346.7,3346.3,40.8]
[1735616216909,0.4556,3346.7,3346.5,0.29934]
[1735616218206,0.4556,3346.7,3346.1,3.50717]
[1735616218207,0.29934,3346.6,3346.1,3.50717]
[1735616219001,2.72610509,3346.7,3346.1,3.2078]
[1735616219205,0.4556,3346.7,3346.6,0.29933]
[1735616219905,0.4556,3346.7,3346.1,3.2078]
[1735616220108,0.4556,3346.7,3346.5,0.29933]
[1735616221707,0.4556,3346.7,3346.6,0.29933]
[1735616223508,0.4556,3346.7,3346.1,3.2078]
[1735616223713,0.4556,3346.7,3346.5,0.29933]
[1735616224108,0.4556,3346.7,3346.2,40.8]
[1735616224308,3.2078,3346.5,3346.1,3.2078]
[1735616224611,3.2078,3346.5,3346.3,0.29936]
[1735616225215,2.27050509,3346.4,3345.7,40.8]
[1735616225412,0.77456,3346.3,3345.9,0.29939]
[1735616225612,1.23476,3346.3,3345.9,0.29939]
[1735616226717,1.23476,3346.3,3345.7,40.8]
[1735616226718,0.29937,3346.2,3345.7,40.8]
[1735616226907,0.29937,3346.2,3345.9,0.29939]
[1735616227212,0.9354,3346.3,3345.9,0.29939]
[1735616227414,1.23476,3346.3,3345.9,0.29939]
[1735616228814,0.9354,3346.3,3345.7,40.8]
[1735616229003,0.29937,3346.2,3345.8,0.2994]
[1735616229415,0.29937,3346.2,3345.7,40.8]
[1735616229615,0.29937,3346.2,3345.9,0.29939]
[1735616231713,3.50717,3346.2,3345.9,0.29939]
[1735616231918,0.29937,3346.2,3345.9,0.29939]
[1735616232105,3.50717,3346.2,3345.9,0.29939]
[1735616232913,0.29939,3346.0,3345.7,40.8]
[1735616233214,0.29939,3346.0,3345.6,0.29941]
[1735616233215,0.7464,3345.9,3345.6,0.29941]
[1735616233416,0.447,3345.9,3345.7,0.29941]
[1735616233712,0.4793,3345.8,3345.7,0.29941]
[1735616235217,0.447,3345.9,3345.8,0.2994]
[1735616235812,0.447,3345.9,3345.8,41.0994]
[1735616236320,0.4668,3346.1,3346.0,0.29938]
[1735616236706,0.4668,3346.1,3345.9,0.29939]